bitfinex/quotes_SOLUSD_20240603
["timestamp","ask_amount","ask_price","bid_price","bid_amount"]
[1717414983015,2.2436,164.91,164.86,2.2443]
[1717414983815,2.2436,164.91,164.86,9.3043]
[1717414984018,2.2435,164.92,164.87,47.2441]
[1717414984605,2.2436,164.91,164.87,47.2441]
[1717414985093,2.2436,164.91,164.87,45.0]
[1717414985634,2.2432,164.95,164.88,58.8349]
[1717414985819,4.4857,164.97,164.9,7.06]
[1717414986015,2.2433,164.94,164.91,45.0]
[1717414986645,2.2433,164.94,164.9,45.0]
[1717414987619,2.2431,164.95,164.9,47.2437]
[1717414987832,2.2431,164.95,164.9,53.895]
[1717414989053,2.2431,164.95,164.9,68.9291]
[1717414989737,2.2431,164.95,164.91,42.4919]
[1717414989939,2.2431,164.95,164.92,45.0]
[1717414993931,2.2432,164.94,164.92,45.0]
[1717414996021,2.2431,164.95,164.92,45.0]
[1717414999436,2.2432,164.94,164.92,45.0]
[1717415000029,2.2433,164.93,164.92,45.0]
[1717415000238,2.2433,164.93,164.88,38.654]
[1717415000451,2.2433,164.93,164.89,45.0]
[1717415002368,2.2437,164.91,164.88,45.0]
[1717415002536,2.2437,164.91,164.86,38.6543]
[1717415002938,2.2438,164.9,164.84,45.7144]
[1717415003149,2.2438,164.9,164.85,2.2444]
[1717415003471,4.4869,164.93,164.84,36.41]
[1717415003766,4.4869,164.93,164.85,2.2443]
[1717415004089,2.2437,164.91,164.85,2.2443]
[1717415004270,2.2437,164.91,164.86,2.2443]
[1717415007269,6.7301,164.94,164.83,2.2446]
[1717415007270,2.2439,164.89,164.83,2.2446]
[1717415007439,2.2439,164.89,164.82,43.47]
[1717415007440,2.2439,164.89,164.84,2.2445]
[1717415009843,25.4883,164.97,164.85,36.41]
[1717415010160,2.2434,164.93,164.88,2.244]
[1717415010359,2.2434,164.93,164.88,46.21072045]
[1717415010870,2.2434,164.93,164.88,45.0]
[1717415011073,2.2435,164.92,164.88,45.0]
[1717415012275,2.2435,164.92,164.87,47.2441]
[1717415013075,2.2436,164.91,164.87,45.0]
[1717415013443,2.2435,164.92,164.87,47.2441]
[1717415015856,2.2436,164.91,164.87,45.0]
[1717415016387,2.2436,164.91,164.86,2.2442]
[1717415019356,2.2436,164.91,164.83,2.2446]
[1717415019357,2.244,164.88,164.83,2.2446]
[1717415020074,2.2439,164.89,164.84,2.2445]
[1717415020781,2.2439,164.89,164.82,7.06]
[1717415020782,2.244,164.88,164.83,47.2446]
[1717415021274,2.2442,164.87,164.83,45.0]
[1717415021485,6.3452,164.91,164.83,7.06]
[1717415021779,6.3452,164.91,164.84,45.0]
[1717415021977,2.2438,164.9,164.85,2.2444]
[1717415023149,2.2438,164.9,164.84,54.3045]
[1717415023354,4.4865,164.94,164.85,38.6544]
[1717415023555,2.2439,164.9,164.86,45.0]
[1717415024379,4.4865,164.94,164.86,45.0]
[1717415024380,2.2439,164.89,164.86,45.0]
[1717415024885,2.2438,164.9,164.86,45.0]
[1717415029176,6.4769,164.95,164.86,88.47]
[1717415029685,2.2436,164.92,164.87,2.2441]
[1717415030992,2.2436,164.92,164.87,9.3041]
[1717415031198,2.2436,164.92,164.88,45.0]
[1717415031406,2.2436,164.91,164.88,45.0]
[1717415031576,2.2436,164.91,164.87,52.06]
[1717415031996,2.2434,164.93,164.87,90.7141]
[1717415032209,2.2434,164.93,164.88,45.714]
[1717415032504,2.2434,164.93,164.89,45.0]
[1717415034691,2.2434,164.93,164.89,81.41]
[1717415036206,2.2435,164.92,164.89,45.0]
[1717415036508,2.2437,164.91,164.88,45.0]
[1717415036702,2.2437,164.91,164.86,38.6343]
[1717415038220,2.2437,164.91,164.87,45.0]
[1717415041103,2.2435,164.93,164.87,83.6341]
[1717415041884,2.2435,164.93,164.87,81.39]
[1717415042217,2.2435,164.93,164.88,2.244]
[1717415042718,2.2432,164.94,164.89,2.2438]
[1717415043086,2.2432,164.94,164.89,47.2438]
[1717415044022,2.2433,164.93,164.89,47.2438]
[1717415044312,2.2433,164.93,164.89,45.0]
[1717415044697,2.2433,164.93,164.89,81.39]
[1717415045641,2.2433,164.93,164.89,83.6339]
[1717415046336,2.2433,164.93,164.89,81.39]
[1717415046830,4.4857,164.97,164.89,81.39]
[1717415046831,2.2435,164.92,164.89,81.39]
[1717415047011,2.2434,164.93,164.89,81.39]
[1717415047512,2.2435,164.92,164.89,81.39]
[1717415049206,2.2434,164.93,164.89,81.39]
[1717415050232,4.486,164.96,164.89,81.39]
[1717415050441,2.2435,164.92,164.89,45.0]
[1717415050736,2.2435,164.92,164.88,45.0]
[1717415052324,2.2435,164.92,164.88,47.244]
[1717415053632,2.2434,164.93,164.88,47.244]
[1717415053836,8.2928,164.92,164.88,45.0]
[1717415054156,8.2928,164.92,164.87,2.2441]
[1717415054612,2.2436,164.91,164.87,2.2441]
[1717415055122,8.2928,164.92,164.88,1.03223662]
[1717415055734,8.2928,164.92,164.87,2.2441]
[1717415056038,2.2436,164.91,164.87,2.2441]
[1717415058720,2.2438,164.9,164.85,2.2444]
[1717415059230,2.2438,164.9,164.86,2.2443]
[1717415059543,2.2436,164.92,164.85,54.55]
[1717415059729,2.2433,164.93,164.88,38.6339]
[1717415060045,2.2433,164.93,164.89,45.0]
[1717415060564,2.2435,164.92,164.87,2.2441]
[1717415060762,2.2435,164.92,164.87,47.2441]
[1717415064769,2.2435,164.92,164.88,2.244]
[1717415064953,2.2435,164.92,164.88,47.244]
[1717415065450,2.2435,164.92,164.88,2.244]
[1717415066570,2.2435,164.92,164.87,47.2441]
[1717415067262,2.2435,164.92,164.87,83.6341]
[1717415067668,2.2435,164.92,164.87,90.6941]
[1717415068167,2.2434,164.93,164.88,45.694]
[1717415068375,2.2435,164.92,164.89,45.0]
[1717415068544,2.2434,164.93,164.89,45.0]
[1717415068963,2.2435,164.92,164.89,45.0]
[1717415070349,2.2433,164.93,164.89,45.0]
[1717415073650,2.2435,164.92,164.89,45.0]
[1717415074674,2.2434,164.93,164.89,45.0]
[1717415075569,2.2435,164.92,164.89,45.0]
[1717415075963,2.2437,164.91,164.87,36.39]
[1717415076954,2.2437,164.91,164.86,38.6342]
[1717415077180,2.2437,164.91,164.87,45.0]
[1717415080759,2.2438,164.9,164.87,45.0]
[1717415081160,2.2435,164.92,164.87,83.6341]
[1717415081779,2.2435,164.92,164.87,90.6941]
[1717415083373,2.2434,164.93,164.88,2.244]
[1717415083567,2.2435,164.92,164.88,2.244]
[1717415084382,2.2435,164.92,164.87,90.6941]
[1717415085370,2.2436,164.91,164.87,88.45]
[1717415085569,2.2436,164.91,164.87,36.39]
[1717415086263,2.2436,164.91,164.86,45.6942]
[1717415087475,2.2436,164.91,164.87,45.0]
[1717415088383,2.2438,164.9,164.87,45.0]
[1717415088556,2.2437,164.91,164.87,45.0]
[1717415089482,2.2437,164.91,164.87,47.2441]
[1717415089786,17.3101,164.96,164.87,45.0]
[1717415090283,2.2435,164.92,164.87,47.2441]
[1717415095786,2.2436,164.91,164.87,45.0]
[1717415099389,6.095,164.96,164.87,81.39]
[1717415099687,6.095,164.96,164.87,83.6341]
[1717415100095,2.2435,164.92,164.87,83.6341]
[1717415100308,2.2435,164.92,164.87,89.834]
[1717415100466,2.2435,164.92,164.88,0.52243097]
[1717415101286,2.2435,164.92,164.88,6.84603097]
[1717415101582,2.2435,164.92,164.89,45.0]
[1717415105692,2.2437,164.9,164.89,45.0]
[1717415107270,8.9737,164.93,164.83,36.39]
[1717415107488,2.244,164.89,164.84,2.2445]
[1717415107795,2.244,164.89,164.84,8.7061]
[1717415108096,2.244,164.88,164.84,13.5216]
[1717415108290,2.2441,164.87,164.84,6.4616]
[1717415108493,2.244,164.88,164.84,6.4616]
[1717415108670,6.7314,164.9,164.83,36.39]
[1717415108876,2.2444,164.86,164.83,36.39]
[1717415109076,2.2444,164.85,164.83,36.39]
[1717415109277,2.2443,164.86,164.83,36.39]
[1717415109481,2.2443,164.86,164.81,52.3238]
[1717415110403,2.2443,164.86,164.81,45.2638]
[1717415110605,2.2444,164.85,164.81,50.0788]
[1717415110771,4.4878,164.89,164.81,43.0188]
[1717415110977,2.2445,164.85,164.82,45.0]
[1717415112127,2.2446,164.84,164.79,38.6352]
[1717415112401,2.2446,164.84,164.79,45.6952]
[1717415112619,2.2445,164.85,164.8,2.2451]
[1717415112822,2.2447,164.83,164.77,36.39]
[1717415112975,2.2446,164.84,164.78,51.9125]
[1717415113394,2.2446,164.84,164.79,2.2452]
[1717415113587,2.2446,164.84,164.79,83.6352]
[1717415116906,2.2445,164.85,164.8,2.2451]
[1717415117110,11.22,164.89,164.8,52.06]
[1717415117292,4.4881,164.89,164.8,90.695]
[1717415117504,2.2444,164.85,164.8,96.8625]
[1717415118698,2.2446,164.84,164.8,94.6175]
[1717415119017,2.2445,164.85,164.8,87.5575]
[1717415119320,2.2445,164.85,164.8,94.6175]
[1717415120715,2.2445,164.85,164.8,87.5575]
[1717415120897,2.2442,164.87,164.81,49.7923]
[1717415121097,2.2443,164.86,164.82,45.0]
[1717415121414,2.2445,164.85,164.82,45.0]
[1717415121810,2.2443,164.86,164.82,45.0]
[1717415122720,2.2443,164.86,164.82,51.301]
[1717415123291,4.4873,164.91,164.83,42.691]
[1717415123508,2.2441,164.88,164.84,45.0]
[1717415124108,2.2441,164.87,164.84,45.0]
[1717415124417,2.2443,164.86,164.84,45.0]
[1717415125196,2.2444,164.85,164.83,45.0]
[1717415125392,8.9762,164.88,164.79,6.246]
[1717415125803,2.2447,164.84,164.79,6.246]
[1717415126392,2.2447,164.84,164.79,8.4912]
[1717415126885,4.4884,164.87,164.79,6.246]
[1717415127091,2.2446,164.84,164.8,45.0]
[1717415128324,4.4887,164.86,164.8,45.0]
[1717415128528,2.2448,164.83,164.8,45.0]
[1717415129023,2.2447,164.83,164.8,45.0]
[1717415129714,11.2203,164.88,164.8,45.0]
[1717415129923,2.2444,164.85,164.79,88.45]
[1717415130217,2.2444,164.85,164.79,81.39]
[1717415130514,2.2444,164.85,164.8,7.06]
[1717415130729,2.2444,164.85,164.81,45.0]
[1717415131016,2.2446,164.84,164.79,81.39]
[1717415131217,2.2447,164.83,164.79,81.39]
[1717415132019,2.2446,164.84,164.79,83.6352]
[1717415132620,2.2445,164.85,164.79,83.6352]
[1717415133326,2.2445,164.85,164.79,90.6952]
[1717415134994,2.2445,164.85,164.79,83.6352]
[1717415135309,2.2445,164.85,164.79,90.6952]
[1717415136331,2.2446,164.84,164.79,90.6952]
[1717415136933,2.2446,164.84,164.79,83.6352]
[1717415140240,2.2447,164.83,164.79,45.0]
[1717415140445,2.2447,164.83,164.78,47.2453]
[1717415141559,2.2447,164.83,164.78,83.6353]
[1717415142553,2.2446,164.84,164.79,2.2452]
[1717415142735,2.2446,164.84,164.79,47.2452]
[1717415143448,2.2446,164.84,164.79,45.0]
[1717415146770,4.4884,164.87,164.79,45.0]
[1717415147280,2.2447,164.84,164.79,45.0]
[1717415147780,2.2447,164.83,164.79,45.0]
[1717415148172,2.2446,164.84,164.79,47.2452]
[1717415148549,2.2446,164.84,164.79,45.0]
[1717415148979,2.2447,164.83,164.79,45.0]
[1717415150784,6.6407,164.89,164.75,36.39]
[1717415150984,15.1291,164.9,164.75,36.39]
[1717415150985,2.2452,164.79,164.75,36.39]
[1717415151497,2.2452,164.79,164.74,2.2458]
[1717415152790,2.2454,164.78,164.73,38.636]
[1717415153169,2.2453,164.79,164.74,2.2459]
[1717415153790,2.2453,164.79,164.73,9.306]
[1717415154157,2.2453,164.79,164.74,45.0]
[1717415155567,2.2453,164.79,164.73,47.246]
[1717415155770,2.2453,164.79,164.73,54.306]
[1717415156287,2.2453,164.79,164.74,2.2459]
[1717415156492,2.2453,164.79,164.74,47.2459]
[1717415157972,2.2454,164.78,164.74,45.0]
[1717415158911,2.2456,164.77,164.74,45.0]
[1717415159711,2.2454,164.78,164.74,45.0]
[1717415160805,2.2456,164.77,164.74,45.0]
[1717415161374,2.2454,164.78,164.74,45.0]
[1717415162103,2.2455,164.77,164.72,2.2461]
[1717415162286,2.2455,164.77,164.72,47.2461]
[1717415162485,4.4903,164.8,164.72,45.0]
[1717415163404,2.2457,164.76,164.72,45.0]
[1717415163606,2.2457,164.76,164.71,47.2463]
[1717415163901,6.0897,164.79,164.71,45.0]
[1717415164108,6.0897,164.78,164.71,45.0]
[1717415164286,2.2459,164.74,164.69,2.2466]
[1717415164496,8.2573,164.74,164.69,2.2466]
[1717415165219,8.2573,164.74,164.68,9.3067]
[1717415165387,8.2573,164.74,164.69,2.2466]
[1717415166126,8.2573,164.74,164.69,47.2466]
[1717415167824,8.2573,164.74,164.69,2.2466]
[1717415170314,2.2458,164.76,164.69,2.2466]
[1717415170515,2.2458,164.76,164.7,2.2464]
[1717415170821,2.2458,164.76,164.7,9.3064]
[1717415171019,2.2458,164.76,164.71,52.06]
[1717415171415,2.2458,164.76,164.71,45.0]
[1717415172245,2.2458,164.76,164.71,47.2463]
[1717415173126,2.2458,164.76,164.71,45.0]
[1717415173711,2.2455,164.77,164.71,88.45]
[1717415173912,2.2455,164.77,164.72,2.2461]
[1717415174134,2.2455,164.77,164.71,88.45]
[1717415174925,2.2455,164.77,164.71,90.6963]
[1717415176520,2.2455,164.77,164.72,2.2462]
[1717415176718,8.5075,164.78,164.72,2.2462]
[1717415176939,2.2452,164.79,164.72,36.39]
[1717415177135,2.2452,164.79,164.74,9.3059]
[1717415177308,2.2452,164.79,164.75,45.0]
[1717415177721,2.2452,164.79,164.74,47.2459]
[1717415178027,2.2454,164.78,164.74,45.0]
[1717415178412,2.2455,164.77,164.74,45.0]
[1717415180032,2.2454,164.78,164.74,45.0]
[1717415180423,2.2454,164.78,164.73,45.0]
[1717415180614,8.2492,164.78,164.73,45.0]
[1717415181013,6.0038,164.78,164.72,45.0]
[1717415181219,2.2457,164.76,164.72,45.0]
[1717415187037,8.7791,164.76,164.72,45.0]
[1717415187426,2.2458,164.75,164.72,45.0]
[1717415190147,8.7791,164.76,164.72,45.0]
[1717415190845,8.5206,164.74,164.7,0.622619]
[1717415192028,2.2461,164.73,164.7,0.622619]
[1717415193050,6.2746,164.74,164.7,0.622619]
[1717415193051,2.2462,164.72,164.7,0.622619]
[1717415193458,2.2461,164.73,164.7,0.622619]
[1717415196741,2.2463,164.71,164.7,0.622619]
[1717415226813,3.78575362,164.71,164.7,0.622619]
[1717415227116,2.2463,164.71,164.7,0.622619]
[1717415234319,6.739,164.71,164.7,0.622619]
[1717415235314,13.4781,164.71,164.7,0.622619]
[1717415235519,22.4635,164.71,164.7,0.622619]
[1717415243826,22.6335,164.71,164.7,0.622619]
[1717415268152,22.4635,164.71,164.7,0.622619]
[1717415272664,22.6335,164.71,164.7,0.622619]
[1717415279361,22.6335,164.71,164.62,2.2475]
[1717415279362,2.2474,164.64,164.63,6.3433]
[1717415279741,2.2474,164.64,164.63,22.3952]
[1717415280968,2.2474,164.64,164.63,6.3433]
[1717415281644,2.2475,164.63,164.59,15.6169]
[1717415281865,2.2476,164.62,164.61,6.1481]
[1717415282161,2.2476,164.62,164.61,21.3894]
[1717415282851,2.2475,164.63,164.61,21.3894]
[1717415283336,4.4941,164.66,164.61,21.3894]
[1717415283337,2.2476,164.62,164.61,21.7358]
[1717415284869,2.2474,164.64,164.61,21.7358]
[1717415285074,2.2474,164.63,164.62,6.0531]
[1717415286183,45.0,164.7,164.62,6.0531]
[1717415286184,4.4931,164.7,164.63,6.488]
[1717415286588,2.247,164.67,164.61,9.3076]
[1717415286799,2.247,164.67,164.65,6.4873]
[1717415287008,2.247,164.67,164.65,21.6389]
[1717415287215,2.247,164.67,164.66,6.4873]
[1717415287593,2.2467,164.69,164.66,45.0]
[1717415287800,2.2467,164.69,164.64,9.3072]
[1717415287801,2.2467,164.69,164.67,21.4595]
[1717415288277,4.4924,164.73,164.64,9.3072]
[1717415288278,2.2465,164.7,164.68,21.4595]
[1717415288620,2.2464,164.71,164.69,6.2466]
[1717415288782,2.2464,164.71,164.69,66.8763]
[1717415288981,2.2462,164.72,164.7,21.8763]
[1717415289179,2.246,164.74,164.7,15.6297]
[1717415289525,11.2264,164.79,164.71,51.2466]
[1717415289708,2.246,164.74,164.72,21.8763]
[1717415290023,2.246,164.74,164.73,66.8763]
[1717415290205,2.2458,164.75,164.74,6.46]
[1717415290641,2.2456,164.77,164.74,6.46]
[1717415290835,4.4899,164.82,164.74,6.46]
[1717415291414,2.2455,164.78,164.74,21.9295]
[1717415291611,2.2455,164.77,164.76,21.9295]
[1717415291808,2.2455,164.77,164.76,6.0339]
[1717415292417,2.2458,164.75,164.74,6.4548]
[1717415293349,10.51805362,164.84,164.74,21.8759]
[1717415293651,2.2455,164.77,164.75,66.8759]
[1717415294230,4.4904,164.8,164.7,21.8759]
[1717415294434,2.2458,164.75,164.72,21.8759]
[1717415294739,2.2458,164.75,164.73,21.8759]
[1717415295306,4.4904,164.8,164.7,6.0388]
[1717415295307,2.2459,164.74,164.7,6.0388]
[1717415295551,2.2461,164.73,164.71,51.0388]
[1717415295751,4.4909,164.78,164.71,15.7499]
[1717415295924,2.2458,164.75,164.72,22.0576]
[1717415296638,2.246,164.74,164.72,22.0576]
[1717415297357,4.4909,164.78,164.72,22.0576]
[1717415297546,8.9809,164.8,164.73,45.0]
[1717415297746,2.2456,164.77,164.74,6.499]
[1717415298049,2.2454,164.79,164.75,60.4714]
[1717415298226,2.2451,164.8,164.76,15.4714]
[1717415298430,2.2452,164.79,164.77,6.5943]
[1717415298636,4.4893,164.84,164.76,22.0657]
[1717415298637,2.2451,164.8,164.76,22.0657]
[1717415298856,2.245,164.81,164.78,22.0657]
[1717415299148,4.4893,164.84,164.78,22.0657]
[1717415299149,2.2452,164.8,164.78,22.0657]
[1717415300143,2.2449,164.82,164.79,45.0]
[1717415300350,2.2449,164.82,164.79,66.6305]
[1717415300728,2.2449,164.82,164.8,6.2609]
[1717415301030,2.2447,164.83,164.81,6.2609]
[1717415301543,8.9756,164.9,164.82,45.0]
[1717415301845,2.2445,164.85,164.83,22.625]
[1717415302054,2.2446,164.84,164.83,22.625]
[1717415302229,2.2446,164.84,164.83,6.2132]
[1717415302546,2.2442,164.87,164.84,21.9713]
[1717415302761,2.244,164.88,164.85,15.4163]
[1717415302921,2.244,164.88,164.86,6.555]
[1717415304327,2.244,164.88,164.87,6.555]
[1717415305255,2.2441,164.87,164.84,21.9713]
[1717415305453,2.2441,164.87,164.85,51.555]
[1717415305660,2.2443,164.86,164.83,45.0]
[1717415305831,2.2446,164.84,164.83,45.0]
[1717415306034,4.4884,164.87,164.8,15.4163]
[1717415306659,4.4887,164.86,164.8,15.4163]
[1717415306961,4.4893,164.84,164.78,6.555]
[1717415307340,2.2452,164.79,164.78,6.555]
[1717415307941,2.2452,164.79,164.76,21.4406]
[1717415308146,2.2454,164.78,164.76,6.0243]
[1717415309457,2.2454,164.78,164.74,22.7861]
[1717415309666,2.2454,164.78,164.76,6.4341]
[1717415309855,2.2453,164.79,164.76,6.4341]
[1717415310762,2.2451,164.8,164.76,23.0728]
[1717415310955,2.2451,164.8,164.77,51.3813]
[1717415313059,2.2452,164.79,164.77,51.3813]
[1717415313356,2.2454,164.78,164.75,6.6562]
[1717415313673,2.2454,164.78,164.76,45.0]
[1717415318063,4.4899,164.82,164.73,7.06]
[1717415318274,4.4899,164.82,164.74,45.0]
[1717415318448,2.2455,164.78,164.74,45.0]
[1717415318646,6.0821,164.85,164.74,45.0]
[1717415318846,8.9805,164.81,164.74,45.0]
[1717415319068,11.2259,164.8,164.74,45.0]
[1717415319275,2.2456,164.77,164.74,45.0]
[1717415319851,2.2456,164.77,164.71,15.8827]
[1717415320059,2.2456,164.76,164.72,45.0]
[1717415320373,2.2456,164.76,164.71,8.8227]
[1717415320980,2.2456,164.76,164.71,6.5764]
[1717415321355,2.2458,164.75,164.71,6.5764]
[1717415322476,2.2458,164.75,164.7,16.0071]
[1717415322771,2.2458,164.75,164.71,45.0]
[1717415324445,4.4906,164.79,164.71,45.0]
[1717415324446,2.2457,164.76,164.72,6.3411]
[1717415324670,13.4705,164.81,164.73,52.06]
[1717415325171,2.2455,164.77,164.73,52.06]
[1717415325879,15.2266,164.84,164.76,7.06]
[1717415325880,2.2451,164.8,164.76,7.06]
[1717415326063,2.2451,164.8,164.77,45.0]
[1717415328561,2.2453,164.79,164.77,45.0]
[1717415329056,2.2454,164.78,164.76,45.0]
[1717415329463,2.2454,164.78,164.75,45.0]
[1717415329664,2.2454,164.78,164.74,45.0]
[1717415331855,8.9801,164.81,164.72,7.06]
[1717415332062,2.2456,164.77,164.73,45.0]
[1717415332261,2.2456,164.77,164.72,54.3062]
[1717415334286,11.2239,164.83,164.73,9.306]
[1717415334584,2.2452,164.79,164.74,54.3059]
[1717415334786,2.2451,164.8,164.76,7.06]
[1717415334991,2.245,164.81,164.77,45.0]
[1717415335166,2.2451,164.8,164.77,52.06]
[1717415336562,2.2451,164.8,164.77,45.0]
[1717415337272,2.2453,164.79,164.77,45.0]
[1717415338077,2.2453,164.79,164.76,45.0]
[1717415341779,2.2454,164.78,164.76,45.0]
[1717415342299,2.2451,164.81,164.76,81.41]
[1717415342587,2.2449,164.82,164.78,7.06]
[1717415342785,2.2449,164.82,164.79,46.2119792]
[1717415343088,2.2446,164.84,164.79,54.3052]
[1717415343387,2.2447,164.83,164.79,54.3052]
[1717415343562,2.2447,164.83,164.79,52.06]
[1717415344066,2.2449,164.82,164.79,52.06]
[1717415345182,2.2449,164.82,164.79,45.0]
[1717415347082,2.245,164.81,164.79,45.0]
[1717415347478,2.245,164.81,164.78,45.0]
[1717415347890,4.489,164.85,164.78,45.0]
[1717415348067,2.2448,164.82,164.78,68.1528]
[1717415348267,2.2448,164.82,164.78,77.4582]
[1717415349792,4.4883,164.87,164.8,36.41]
[1717415350092,2.2444,164.85,164.81,95.2837]
[1717415350900,2.2441,164.88,164.83,43.47]
[1717415351073,2.2439,164.89,164.84,58.1902]
[1717415351275,8.9738,164.93,164.84,58.1902]
[1717415351276,2.244,164.88,164.84,58.1902]
[1717415352995,2.244,164.88,164.84,51.1302]
[1717415353564,2.2438,164.9,164.84,51.1302]
[1717415353806,2.244,164.89,164.85,7.06]
[1717415353970,2.244,164.89,164.86,45.0]
[1717415354669,2.244,164.88,164.86,45.0]
[1717415355071,2.244,164.88,164.85,45.0]
[1717415355604,2.2439,164.9,164.86,6.5599]
[1717415355900,2.2439,164.9,164.87,45.0]
[1717415356403,4.487,164.93,164.87,45.0]
[1717415356585,2.2438,164.9,164.87,45.0]
[1717415359573,6.7295,164.95,164.87,81.41]
[1717415359772,2.2437,164.9,164.87,81.41]
[1717415359972,2.2436,164.91,164.87,81.41]
[1717415360379,2.2437,164.9,164.87,81.41]
[1717415360770,2.244,164.89,164.84,6.2543]
[1717415360975,4.487,164.92,164.85,45.0]
[1717415361195,2.2442,164.87,164.84,45.0]
[1717415362781,2.244,164.88,164.84,45.0]
[1717415365383,2.244,164.88,164.83,45.0]
[1717415365581,2.2442,164.87,164.83,45.0]
[1717415365814,4.4876,164.9,164.81,43.47]
[1717415365984,4.4876,164.9,164.81,38.655]
[1717415366188,2.2443,164.86,164.81,38.655]
[1717415366390,2.2443,164.86,164.81,45.715]
[1717415367106,2.2443,164.86,164.82,45.0]
[1717415367686,2.2442,164.87,164.82,47.2448]
[1717415369203,2.2441,164.88,164.82,54.3048]
[1717415370705,2.2442,164.87,164.82,54.3048]
[1717415371017,2.2442,164.87,164.82,45.0]
[1717415371315,2.2442,164.87,164.82,47.2448]
[1717415371488,2.2442,164.87,164.82,54.3048]
[1717415372711,3.14474389,164.92,164.84,36.41]
[1717415372892,3.14474389,164.92,164.85,45.0]
[1717415372893,4.4873,164.91,164.85,45.0]
[1717415373099,2.244,164.89,164.85,45.0]
[1717415374017,2.2437,164.91,164.85,83.6544]
[1717415374221,2.2437,164.91,164.85,90.7144]
[1717415374807,2.2437,164.9,164.85,90.7144]
[1717415375404,2.2437,164.9,164.85,88.47]
[1717415375848,4.4865,164.94,164.85,88.47]
[1717415376028,2.2438,164.9,164.85,88.47]
[1717415376908,2.2438,164.9,164.85,94.7348]
[1717415377313,2.2438,164.9,164.86,7.06]
[1717415377517,2.2438,164.9,164.87,45.0]
[1717415378431,2.2436,164.91,164.87,52.06]
[1717415378629,2.2437,164.9,164.87,88.47]
[1717415378833,2.2437,164.9,164.87,81.41]
[1717415382938,2.2436,164.91,164.87,81.41]
[1717415383119,2.2436,164.91,164.87,88.0688]
[1717415384134,4.4865,164.94,164.87,88.0688]
[1717415384135,2.2437,164.9,164.87,88.0688]
[1717415384437,2.2439,164.89,164.87,45.0]
[1717415384744,2.2439,164.89,164.86,45.0]
[1717415385544,2.2438,164.9,164.86,45.0]
[1717415386025,2.2438,164.9,164.86,51.2162]
[1717415386224,2.2437,164.91,164.86,96.9305]
[1717415386416,2.2437,164.9,164.86,94.6862]
[1717415386818,2.2437,164.9,164.87,6.5507]
[1717415387019,2.2437,164.9,164.88,45.0]
[1717415388046,2.2437,164.91,164.88,45.0]
[1717415389637,2.2438,164.9,164.88,45.0]
[1717415390046,2.2438,164.9,164.87,45.0]
[1717415392319,2.2439,164.89,164.87,45.0]
[1717415393737,2.2438,164.9,164.87,45.0]
[1717415396352,6.0838,164.96,164.87,45.0]